Cogmind - Beta 15 @@@ ROGUE MODE // 2025.06.30 @ 21:41:07 Player: Kaeinara Result: Self-destructed Performance ------------- Evolutions (1) 500 Regions Visited (3) 600 Robots Destroyed (24) 120 Value Destroyed (528) 528 Prototype IDs (2) 40 Alien Tech Used (0) 0 Bonus (0) 0 TOTAL SCORE: 1788 Bonus ------- None Cogmind --------- Core Integrity 217/400 Matter 229/300 Energy 250/250 System Corruption 0% Temperature Cool (0) Movement Walking (120) Location -9/Mines Parts ------- > --- POWER (1) -------- Ion Engine > --- PROPULSION (4) --- Aluminum Leg > --- UTILITY (2) ------ (None) > --- WEAPON (2) ------- Medium Laser > --- INVENTORY (5) ---- Heat Sink Weight Redist. System Weight Redist. System Peak State ------------ > --- POWER ------------ Light Nuclear Core > --- PROPULSION ------- Aluminum Leg Aluminum Leg Aluminum Leg Aluminum Leg > --- UTILITY ---------- Heat Sink Large Storage Unit > --- WEAPON ----------- Beam Rifle Assault Rifle > --- INVENTORY -------- Ion Engine Weight Redist. System Weight Redist. System Medium Laser Beam Rifle Rocket Launcher [Rating: 13] Favorites ----------- Power Ion Engine Engine Ion Engine Power Core Light Nuclear Core Propulsion Aluminum Leg Leg Aluminum Leg Flight Unit Flight Unit Utility Heat Sink Device Heat Sink Storage Small Storage Unit Weapon Beam Rifle Energy Gun Beam Rifle Ballistic Gun Assault Rifle Launcher Rocket Launcher Build | -11 -10 -9 -9 ------- Run | Yrd Mat Mat Min Slots Evolved 2 | . . 2 . Power . | . . . . Propulsion 2 | . . 2 . Utility . | . . . . Weapon . | . . . . Parts Attached 19 | 6 8 2 3 Power 2 | 1 1 . . Engine 1 | 1 . . . Core 1 | . 1 . . Reactor . | . . . . Propulsion 8 | 2 3 . 3 Treads . | . . . . Leg 6 | 2 3 . 1 Wheel . | . . . . Hover . | . . . . Flight 2 | . . . 2 Utility 4 | 1 3 . . Device 2 | . 2 . . Storage 2 | 1 1 . . Processor . | . . . . Hackware . | . . . . Protection . | . . . . Artifact . | . . . . Weapon 5 | 2 1 2 . Energy Gun 3 | 1 1 1 . Energy Cannon . | . . . . Ballistic Gun 1 | 1 . . . Ballistic Cannon . | . . . . Launcher 1 | . . 1 . Special Weapon . | . . . . Impact Weapon . | . . . . Slashing Weapon . | . . . . Piercing Weapon . | . . . . Special Melee Weapon . | . . . . Unidentified Prototypes . | . . . . Parts Lost 10 | . . 6 4 Power 1 | . . 1 . Propulsion 5 | . . 3 2 Utility . | . . . . Weapon 4 | . . 2 2 Highest Loss Streak 6 | . . 6 4 To Critical Strikes . | . . . . Average Backups 6 | 1 7 3 3 Power . | . 1 . . Propulsion . | . 1 . . Utility 1 | . 1 2 2 Weapon 2 | . 3 1 . Tool/Special . | . . . . Unused Backups 4 | . 3 . 1 Power 1 | . 1 . . Propulsion . | . . . . Utility 1 | . . . 1 Weapon 2 | . 2 . . Tool/Special . | . . . . Average Slot Usage (%) 86 | . 99 77 43 Engine 7 | . 6 8 11 Core 5 | . 7 2 . Leg 23 | . 27 22 7 Flight 1 | . . . 8 Device 11 | . 13 11 1 Storage 11 | . 14 11 1 Energy Gun 12 | . 14 11 10 Ballistic Gun 9 | . 14 2 . Launcher 1 | . . 8 1 Peak Build Rating 13 | 6 12 13 10 Average Rating 9 | 3 10 9 4 On Entrance 6 | . 6 11 8 Naked Turns . | . . . . Heaviest Build 33 | 14 31 33 33 Greatest Support 40 | 20 26 40 10 Greatest Overweight (x) 3 | . 1 3 3 Average Overweight (x) . | . . 2 . Largest Inventory Capacity 15 | 8 15 15 15 Average Capacity 9 | 6 9 15 6 Most Carried 8 | 4 8 7 5 Average Carried 6 | 2 7 3 3 Final Capacity 15 | 8 15 15 5 Final Carried 8 | 2 8 3 3 Class Distribution -------------------- 79% | Mutant 20% | Scavenger-Mutant Dominant Class ---------------- Mutant | -10/Materials Mutant | -9/Materials Mutant | -9/Mines Resources | -11 -10 -9 -9 ----------- Run | Yrd Mat Mat Min Matter Collected 523 | 224 122 25 152 Remotely . | . . . . Salvage Created 629 | . 278 221 130 Parts 42 | . 20 11 11 Haulers Intercepted . | . . . . Recyclers Shooed . | . . . . Parts Field Recycled . | . . . . Retrieved Matter . | . . . . Parts Self-Destructed . | . . . . Prevented . | . . . . Kills | -11 -10 -9 -9 ------- Run | Yrd Mat Mat Min Combat Hostiles Destroyed 21 | . 9 5 7 Guns 13 | . 9 2 2 AOE 8 | . . 3 5 Classes Destroyed 5 | . 2 3 . Recycler 2 | . . 2 . Watcher 1 | . . 1 . Swarmer 11 | . 3 4 4 Grunt 9 | . 6 . 3 Sentry 1 | . . 1 . Best Kill Streak 7 | . 3 7 4 Combat Bots Only 4 | . 3 4 4 Max Kills in Single Turn 3 | . 1 2 3 Gunslinging . | . . . . Exploded 3 | . . 1 3 Melee . | . . . . Uniques/NPCs Destroyed . | . . . . Combat | -11 -10 -9 -9 -------- Run | Yrd Mat Mat Min Hostile Shots Fired 113 | . 34 58 21 Missed 21 | . 6 9 6 Hits 92 | . 28 49 15 Projectile 92 | . 28 49 15 Critical Strikes 2 | . 2 . . Damage Taken 1224 | . 369 586 269 Core 275 | . 92 80 103 Absorbed by Shields . | . . . . Core Remaining (%) 81 | 100 63 . . Volleys Fired 54 | . 20 16 18 Largest 2 | . 2 2 2 Hottest 89 | . 76 89 89 Shots Fired 91 | . 40 31 20 Gun 80 | . 40 23 17 Cannon . | . . . . Launcher 11 | . . 8 3 Special . | . . . . Kinetic 27 | . 20 7 . Thermal 53 | . 20 16 17 Explosive 11 | . . 8 3 Electromagnetic . | . . . . Robot Hit Streak 9 | . 9 4 5 Robot Miss Streak 4 | . 4 3 2 Penetration Max . | . . . . Secondary Targets 2 | . 2 . . Max Gunslinging Chain 1 | . 1 . . Shots Hit Robots 52 | . 23 16 13 Core Hits 36 | . 16 11 9 Critical Kills . | . . . . Critical Parts Destroyed . | . . . . Critical Strikes 2 | . . 1 1 Burn 2 | . . 1 1 Melee Attacks . | . . . . Impact . | . . . . Slashing . | . . . . Piercing . | . . . . Sneak Attacks . | . . . . Combat Hostiles . | . . . . Follow-up Attacks . | . . . . Damage Inflicted 1260 | . 333 467 460 Guns 623 | . 308 154 161 Cannons . | . . . . Explosions 612 | . . 313 299 Melee . | . . . . Ramming 25 | . 25 . . Kinetic 156 | . 119 37 . Thermal 467 | . 189 117 161 Explosive 612 | . . 313 299 Electromagnetic . | . . . . Impact . | . . . . Slashing . | . . . . Piercing . | . . . . Highest Corruption . | . . . . Average Corruption . | . . . . Corruption Purged . | . . . . Corruption Blocked . | . . . . Overload Shots . | . . . . Overflow Damage 111 | . . 23 88 Projectiles . | . . . . Explosions 111 | . . 23 88 Melee . | . . . . Knockbacks . | . . . . Impact . | . . . . Kinetic . | . . . . Secondary . | . . . . Self-Inflicted Damage 263 | . . 177 86 Shots 9 | . . 6 3 Rammed . | . . . . Targets Rammed 8 | . 8 . . Kicked 8 | . 8 . . Crushed . | . . . . Highest Temperature 207 | . 207 5 147 Average Temperature 64 | . 73 3 54 Received Heat Transfer 324 | . 225 9 90 Effects 3 | . 3 . . Interference 3 | . 3 . . Siege Activations . | . . . . Martial Activations . | . . . . Shielding Activations . | . . . . Robots Disrupted . | . . . . Combat Hostiles . | . . . . Robots Corrupted . | . . . . Combat Hostiles . | . . . . Parts Fried . | . . . . Impact Corruptions . | . . . . Robots Melted . | . . . . Combat Hostiles . | . . . . Parts Melted 4 | . 1 1 2 Heat Transferred 1369 | . 481 370 518 Parts Sabotaged . | . . . . Parts Stolen . | . . . . Parts Stripped . | . . . . Power Chain Reactions . | . . . . Alert | -11 -10 -9 -9 ------- Run | Yrd Mat Mat Min Maximum Alert Level . | . . . . Low Security (%) 100 | 100 100 100 100 Level 1 . | . . . . Level 2 . | . . . . Level 3 . | . . . . Level 4 . | . . . . Level 5 . | . . . . High Security . | . . . . Max Security . | . . . . Peak Influence 137 | . 82 128 137 Initial 26 | . . 1 26 Average 49 | . 32 73 112 Influence Increases 660 | . 251 208 201 Destroy 0b10 Robot/C 420 | . 180 100 140 Destroy 0b10 Robot/NC 15 | . . 15 . Destroy Leader 72 | . 30 22 20 Successful Hack 23 | . 23 . . Destroy Structure 85 | . 3 56 26 Lose Combat Pursuer 45 | . 15 15 15 Influence Decreases 553 | . 245 146 162 Entered New Map 47 | . . 5 42 Time Decay 406 | . 245 81 80 Lost Part 100 | . . 60 40 Squads Dispatched . | . . . . Investigation . | . . . . Extermination . | . . . . Reinforcement . | . . . . Assault . | . . . . Garrison . | . . . . Intercept . | . . . . Searches Triggered . | . . . . Construction Impeded . | . . . . Haulers Reinforced . | . . . . Active Scanning Responses . | . . . . Cargo Convoy Interrupts . | . . . . Stealth | -11 -10 -9 -9 --------- Run | Yrd Mat Mat Min Distress Signals 1 | . 1 . . Communications Jammed . | . . . . Distress Signals . | . . . . Times Spotted 29 | . 11 9 9 Peak Tracking Total 5 | . 4 5 4 Tactical Retreats 3 | . 1 1 1 Traps | -11 -10 -9 -9 ------- Run | Yrd Mat Mat Min Traps Triggered 1 | . 1 . . Indirectly . | . . . . Trap Hack Attempts . | . . . . Triggered . | . . . . Disarmed . | . . . . Reprogrammed . | . . . . Reused . | . . . . Traps Extracted . | . . . . Installed . | . . . . Triggered . | . . . . Machines | -11 -10 -9 -9 ---------- Run | Yrd Mat Mat Min Machines Disabled . | . . . . Max in Single Turn . | . . . . Machines Repaired . | . . . . Machines Dismantled . | . . . . Machines Sabotaged . | . . . . Overloaded Fab Kills . | . . . . Hacking | -11 -10 -9 -9 --------- Run | Yrd Mat Mat Min Machines Accessed 4 | . 4 . . Terminals 4 | . 4 . . Fabricators . | . . . . Repair Stations . | . . . . Recycling Units . | . . . . Scanalyzers . | . . . . Garrison Access . | . . . . Total Hacks 17 | . 17 . . Successful 9 | . 9 . . Failed 8 | . 8 . . Catastrophic 1 | . 1 . . Database Lockouts . | . . . . Manual 14 | . 14 . . Terminals 17 | . 17 . . Fabricators . | . . . . Repair Stations . | . . . . Recycling Units . | . . . . Scanalyzers . | . . . . Garrison Access . | . . . . Terminal Hacks 5 | . 5 . . Record 1 | . 1 . . Prototype ID Bank 1 | . 1 . . Level Access Points 1 | . 1 . . Branch Access Points 1 | . 1 . . Alert Level 1 | . 1 . . Fabricator Hacks . | . . . . Repair Station Hacks . | . . . . Recycling Unit Hacks . | . . . . Scanalyzer . | . . . . Garrison Access Hacks . | . . . . Unauthorized Hacks 4 | . 4 . . Terminals 4 | . 4 . . Botnet 4 | . 4 . . Fabricators . | . . . . Repair Stations . | . . . . Recycling Units . | . . . . Scanalyzers . | . . . . Garrison Access . | . . . . Data Cores Recovered . | . . . . Used . | . . . . Hacking Detections 4 | . 4 . . Full Trace Events . | . . . . Feedback Events . | . . . . Feedback Blocked . | . . . . Robot Schematics Acquired . | . . . . Robots Built . | . . . . Authchips . | . . . . Time . | . . . . Total Robot Build Rating . | . . . . Part Schematics Acquired . | . . . . Parts Built . | . . . . Authchips . | . . . . Time . | . . . . Total Part Build Rating . | . . . . Parts Repaired . | . . . . Time . | . . . . Parts Recycled . | . . . . Recycled Matter . | . . . . Retrieved Matter . | . . . . Retrieved Components . | . . . . Parts Scanalyzed . | . . . . Part Schematics Acquired . | . . . . Parts Damaged . | . . . . Bothacking | -11 -10 -9 -9 ------------ Run | Yrd Mat Mat Min Used RIF Installer . | . . . . Robots Hacked . | . . . . Non-combat . | . . . . Combat . | . . . . Robot Hacks Applied . | . . . . Relay Couplers Released . | . . . . Fabnet Peak Effective % . | . . . . Robots Rewired . | . . . . Allies Hacked . | . . . . Hacks Repelled . | . . . . Allies | -11 -10 -9 -9 -------- Run | Yrd Mat Mat Min Total Allies . | . . . . Largest Group . | . . . . Highest-Rated Group . | . . . . Highest-Rated Ally . | . . . . Total Orders . | . . . . Ally Attacks . | . . . . Total Damage . | . . . . Kills . | . . . . Allies Corrupted . | . . . . Allies Melted . | . . . . Intel | -11 -10 -9 -9 ------- Run | Yrd Mat Mat Min Active Infowar (turns) . | . . . . Robot Analysis Total . | . . . . Derelict Logs Recovered . | . . . . Drone Launches . | . . . . Drone Recoveries . | . . . . Exploration | -11 -10 -9 -9 ------------- Run | Yrd Mat Mat Min Turns Passed 1145 | 57 741 182 165 Spaces Moved 465 | 44 236 48 137 Core 13 | 13 . . . Treads . | . . . . Legs 361 | 31 236 48 46 Wheels . | . . . . Hover . | . . . . Flight 91 | . . . 91 Fastest Speed 37 | 50 120 120 37 Average Speed 131 | 99 143 267 72 Slowest Speed 330 | 120 190 330 330 Overloaded Moves . | . . . . Propulsion Burnouts . | . . . . Robots Hopped . | . . . . Potential Cave-ins . | . . . . Cave-ins Triggered . | . . . . Exploration Rate (%) 23 | 4 46 7 38 Regions Visited 3 Branch Regions 1 Pre-discovered Areas . | . . . . Known Exits Taken 1 | . 1 . . Unknown Exits Taken 2 | 1 . 1 . Scrap Searched 1 | . . . 1 Spaces Dug . | . . . . Terrain Destroyed 93 | . . 62 31 Melee . | . . . . Projectile . | . . . . AOE 93 | . . 62 31 Terrain Rammed . | . . . . Walls Destroyed . | . . . . Machines Disabled . | . . . . Actions | -11 -10 -9 -9 --------- Run | Yrd Mat Mat Min Total 912 | 57 597 73 185 Wait 329 | . 308 5 16 Move 462 | 43 235 47 137 Hop . | . . . . Pick Up 21 | 8 10 . 3 Fast Attach 2 | . 1 . 1 Attach 17 | 6 1 5 5 Detach 2 | . . . 2 Swap 8 | . 8 . . Drop 9 | . 6 . 3 Fire 54 | . 20 16 18 Melee . | . . . . Ram . | . . . . Kick 8 | . 8 . . Crush . | . . . . Escape Stasis . | . . . . Rewire . | . . . . Trap . | . . . . Miscellaneous . | . . . . Route ------- -11/Scrapyard -10/Materials (discovered 5 exits: *Mat x3 / *Min x2) -9/Materials -9/Mines History --------- Turn | Location | Event 5 | -11/Scrapyard | Discovered new exit (range 15) 58 | -11/Scrapyard | Entered Materials 311 | -10/Materials | Build established: Mutant 426 | -10/Materials | Identified exit to Mines 612 | -10/Materials | Identified exit to Materials 799 | -10/Materials | Entered another Materials area 799 | -9/Materials | Evolved 2 slots: Propulsion x2 813 | -9/Materials | Discovered new exit (range 13) 896 | -9/Materials | Lost 6 parts (1p3n2w) 981 | -9/Materials | Entered Mines 1041 | -9/Mines | Met a Derelict bent on vengeance 1114 | -9/Mines | Lost 4 parts (2n2w) 1146 | -9/Mines | Self-destructed Last Messages --------------- 01062_ Beam Rifle destroyed. 01064_ Lgt. Nuclear Core melted. 01064_ Imp. Heat Sink melted. 01064_ G-47 Trooper destroyed. 01064_ Rocket Launcher destroyed. 01064_ Destroyed Rocket Launcher. 01066_ Acquired 43 matter. 01068_ Acquired Aluminum Leg. 01077_ U-05 Engineer lays Concrete. 01078_ U-05 Engineer builds a Wall. 01083_ Flight Unit destroyed. 01095_ G-34 Mercenary destroyed. 01099_ G-34 Mercenary suffers critical hit (Burn). 01099_ G-34 Mercenary destroyed. 01101_ R-06 Scavenger collects Sml. Laser. 01103_ Acquired 38 matter. 01104_ U-05 Engineer builds a Wall. 01104_ Acquired 30 matter. 01105_ R-06 Scavenger collects Heat Sink. Map ----- +----------------------------------------------------+ | | | | | | | | | | | | | | | | | | | | | | | | | | | | | | | | | | | | | | | | | | | ????????????????????????????????????? | | ???????????????###########??????????? | | ??????????##### s #??????????? | | ??????????# ss ???????????? | | ??????????# @ """ "??????????????? | | ??????????# ## """s"?????????????## | | ??????????# #?????" ??????????????# | | ??????????# #????????????????????## | | ??????????# #???????????????????## | | ??????????# #??????????????# ???# | | ??????????# #??????????????# ??# | | ??????????# #??????????????# ??# # | | ??????????# #?????????????## ??# # | | ??????????# #?????????????? ### # | | ??????????# #??????????????# ? | | ??????????# #????????#?????# ?? | | ??????????# #????????# ????# ?? | | ??????????# #####?#### ##?## ?? | | ??????????# ### ### #?? | | ??##??????# ##? | | ?## #?????## ## | | ?# #??### ###### | | ?# ### ##?????# | | ?# ##??????## | | ??# ##????????#### | | ??## ##?##########?## ### | | ???## ##??# #??## ##?# | | ????## ##### """#???# #??? | | ?????### """#???# #### | +----------------------------------------------------+ Best States ------------- Heat Dissipation 38 Energy Generation 14 Energy Capacity 250 Matter Stores 300 Matter Capacity 300 Sight Range 16 Terrain Scan Density 10 Additional Mass Support 6 Evasion (%) 62 Item Schematics ----------------- None Robot Schematics ------------------ None Fabricated ------------ Nothing Repaired ---------- Nothing Alien Tech Used ----------------- None Achievements -------------- Quantum Hacking root@ Challenges ------------ None Game ------ Seed WeaponControlWartreads Manual? 0 Play Time 00:14:40 Cumulative 32.5 hours Start 2025.06.30 @ 21:17:34 End 2025.06.30 @ 21:41:07 Sessions 1 Manual Loads 0 Difficulty Rogue Special Mode None Game No. 44 Rogue 44 Adventurer 0 Explorer 0 Win Type - Total 0 Types 0/0/0/0/0/0/0/0/0/0 Lore% 16 Gallery% 26 Achievement% 21 Wizard Run 0 Options --------- Layout 1 ASCII 0 Keyboard 0 Movement Mouse Keybinds 0 Fullscreen 1 Font 24/Smallcaps Map View 50x35 Zoom Use 0% Tactical HUD 1 Map Filters NONE Filters NONE Steam 1 RUN: 3d1e036f-ff72-43f7-9ae1-a549d3bf085b